Workbook

Sheet Suma
A2: odwołanie | B2: Pakiet | C2: Nazwa
A4: =HYPERLINK("#'Część 01'!A1","przejdz do") -> przejdz do | B4: ='Część 01'!$A$4 -> Część 01 | C4: ='Część 01'!$A$5 -> Wialki chromatograficzne
A5: =HYPERLINK("#'Część 02'!A1","przejdz do") -> przejdz do | B5: ='Część 02'!$A$4 -> Część 02 | C5: ='Część 02'!$A$5 -> Filtry strzykawkowe
A6: =HYPERLINK("#'Część 03'!A1","przejdz do") -> przejdz do | B6: ='Część 03'!$A$4 -> Część 03 | C6: ='Część 03'!$A$5 -> Kolumna analityczna do chromatografii cieczowej oraz prekolumna
A7: =HYPERLINK("#'Część 04'!A1","przejdz do") -> przejdz do | B7: ='Część 04'!$A$4 -> Część 04 | C7: ='Część 04'!$A$5 -> Kolumny chromatograficzne do HPLC - pr. wody i kosmetyków, witamin, żywności
A8: =HYPERLINK("#'Część 05'!A1","przejdz do") -> przejdz do | B8: ='Część 05'!$A$4 -> Część 05 | C8: ='Część 05'!$A$5 -> Wyposażenie do chromatografu jonowego
A9: =HYPERLINK("#'Część 06'!A1","przejdz do") -> przejdz do | B9: ='Część 06'!$A$4 -> Część 06 | C9: ='Część 06'!$A$5 -> Kolumna chromatograficzna
A10: =HYPERLINK("#'Część 07'!A1","przejdz do") -> przejdz do | B10: ='Część 07'!$A$4 -> Część 07 | C10: ='Część 07'!$A$5 -> Lejki polipropylenowe
A11: =HYPERLINK("#'Część 08'!A1","przejdz do") -> przejdz do | B11: ='Część 08'!$A$4 -> Część 08 | C11: ='Część 08'!$A$5 -> Fiolki scyntylacyjne
A12: =HYPERLINK("#'Część 09'!A1","przejdz do") -> przejdz do | B12: ='Część 09'!$A$4 -> Część 09 | C12: ='Część 09'!$A$5 -> Probówki wirówkowe typu Falcon
A13: =HYPERLINK("#'Część 10'!A1","przejdz do") -> przejdz do | B13: ='Część 10'!$A$4 -> Część 10 | C13: ='Część 10'!$A$5 -> Naczynia z tworzyw sztucznych
A14: =HYPERLINK("#'Część 11'!A1","przejdz do") -> przejdz do | B14: ='Część 11'!$A$4 -> Część 11 | C14: ='Część 11'!$A$5 -> Probówki do poboru prób wirusologicznych
A15: =HYPERLINK("#'Część 12'!A1","przejdz do") -> przejdz do | B15: ='Część 12'!$A$4 -> Część 12 | C15: ='Część 12'!$A$5 -> Końcówki do pipet i pudełka
A16: =HYPERLINK("#'Część 13'!A1","przejdz do") -> przejdz do | B16: ='Część 13'!$A$4 -> Część 13 | C16: ='Część 13'!$A$5 -> Końcówki do pipet Eppendorf
A17: =HYPERLINK("#'Część 14'!A1","przejdz do") -> przejdz do | B17: ='Część 14'!$A$4 -> Część 14 | C17: ='Część 14'!$A$5 -> Strzykawki jednorazowe
A18: =HYPERLINK("#'Część 15'!A1","przejdz do") -> przejdz do | B18: ='Część 15'!$A$4 -> Część 15 | C18: ='Część 15'!$A$5 -> Probówki typu eppendorf
A19: =HYPERLINK("#'Część 16'!A1","przejdz do") -> przejdz do | B19: ='Część 16'!$A$4 -> Część 16 | C19: ='Część 16'!$A$5 -> Ezy polistyrenowe, paleczki i głaszczki
A20: =HYPERLINK("#'Część 17'!A1","przejdz do") -> przejdz do | B20: ='Część 17'!$A$4 -> Część 17 | C20: ='Część 17'!$A$5 -> Płytki Petriego
A21: =HYPERLINK("#'Część 18'!A1","przejdz do") -> przejdz do | B21: ='Część 18'!$A$4 -> Część 18 | C21: ='Część 18'!$A$5 -> Wymazówki z podłożem transportowym AMIES
A22: =HYPERLINK("#'Część 19'!A1","przejdz do") -> przejdz do | B22: ='Część 19'!$A$4 -> Część 19 | C22: ='Część 19'!$A$5 -> System do przechowywania mikroorganizmów w stanie zamrożonym
A23: =HYPERLINK("#'Część 20'!A1","przejdz do") -> przejdz do | B23: ='Część 20'!$A$4 -> Część 20 | C23: ='Część 20'!$A$5 -> Zestaw lejków plastikowych oraz filtrów do filtracji membranowej
A24: =HYPERLINK("#'Część 21'!A1","przejdz do") -> przejdz do | B24: ='Część 21'!$A$4 -> Część 21 | C24: ='Część 21'!$A$5 -> Elektroda pehametryczna
A25: =HYPERLINK("#'Część 22'!A1","przejdz do") -> przejdz do | B25: ='Część 22'!$A$4 -> Część 22 | C25: ='Część 22'!$A$5 -> Torebki do sterylizacji w autoklawie
A26: =HYPERLINK("#'Część 23'!A1","przejdz do") -> przejdz do | B26: ='Część 23'!$A$4 -> Część 23 | C26: ='Część 23'!$A$5 -> Pałeczki z wacikiem do wymazów
A27: =HYPERLINK("#'Część 24'!A1","przejdz do") -> przejdz do | B27: ='Część 24'!$A$4 -> Część 24 | C27: ='Część 24'!$A$5 -> Pompka wodna strumieniowa (PP)
C28: SUMA

Sheet Część 01
C1: AGZ.272.7.2025 | G1: Załącznik 1A do SWZ
A3: OPIS PRZEDMIOTU ZAMÓWIENIA - KALKULACJA CENY OFERTY
A4: =MID(CELL("nazwa_pliku",A1),FIND("]",CELL("nazwa_pliku",A1),1)+1,100) -> Część 01
A5: Wialki chromatograficzne
A6: =HYPERLINK("#'Suma'!A1","wstecz") -> wstecz
B7: L.p. | C7: Przedmiot zamówienia | D7: Szczegółowy opis | E7: Opis oferowanego produktu | G7: Jednostka miary | H7: Ilość | I7: Cena jednostkowa brutto [zł] ** | J7: Wartość brutto [zł]
E8: Producent* | F8: Nr katalogowy producenta*
B10: 1. | C10: Vialki chromatograficzne z nakrętkami i septami (komplet) | D10: • objętość vialki: 1,5 ml; • wymiary vialki: 32x12 mm; • wykonane ze szkła oranżowego; • z białą etykietą; • z szeroką szyjką, zakręcane z gwintem ND9; • nakrętka ND9 z PP z centralnym otworem 6 mm; • septa wykonana z PTFE/silikon (pasująca do nakrętek). | G10: zestaw= 100 szt | H10: 110 | J10: =H10*I10 -> 0.00
B11: 2. | C11: Vialki chromatograficzne zakręcane z zakrętkami i septami (komplet) | D11: • pojemność 1,1ml (do próbek o małych objętościach); • wymiary vialki: 11,6-12,0x32 mm; • zakręcane z gwintem N9 (9mm); • nakrętka ND9 z PP z centralnym otworem 6 mm; • materiał septy silikon/PTFE; • wykonane ze szkła bezbarwnego; • płaskodenne z solidną szklaną podstawą, ze stożkiem wewnętrznym; • lejek 15µL; • z szeroką szyjką. | G11: zestaw= 100 szt | H11: 1 | J11: =H11*I11 -> 0.00
B12: 3. | C12: Vialki chromatograficzne zakręcane z zakrętkami i septami (komplet) | D12: np. producent: Waters nr kat. 186000307C lub produkt równoważny*** • pojemność 1,5 - 2ml; • wymiary vialki: 12x32 mm; • zakręcane z gwintem N9 (9mm); • zakrętki niebieskie z mocowaną przecietą septą; • materiał septy silikon/PTFE, • wykonana ze szkła bezbarwnego, • z polem do opisu. | G12: zestaw= 100 szt | H12: 5 | J12: 0.00
B13: 4. | C13: Nakrętki z septami | D13: • nakrętka zkręcana z gwintem ND9; • wykonana z PP; • średnica nakrętki 9mm ; • otwór centralny nakrętki 6mm ; • septa silikon/PTFE. | G13: op. = 100 szt | H13: 10 | J13: 0.00
B14: 5. | C14: Naczynka do autosamplera (kompatybilne z PSD 120 firmy Varian) | D14: • wykonane z polistyrenu; • objętość 1,5 ml; • wymiary: 15x23 mm ; • układ stożkowy • do roztworów kwaśnych i zasadowych | G14: op. = 1000 szt | H14: 1 | J14: 0.00
B15: 6. | C15: Wialki szklane EPA , bursztynowe, | D15: np. producent: Biosens nr kat. BS2420B lub produkt równoważny*** • Vialki szklane EPA, • bursztynowe, • z gwintem ND24, • Objętość 20 ml, • Wymiary 27,5x57 mm | G15: op. = 100szt. | H15: 1 | J15: 0.00
B16: 7. | C16: Nakrętka bez otworu | D16: • nakrętka bez otworu pasujaca do poz.7 • do fiolek EPA z gwintem ND24, • septa naturalny PTFE/silikon. | G16: op.=100 szt. | H16: 1 | J16: 0.00
B17: Cena oferty (brutto): | J17: =SUM(J10:J16) -> 0.00
B18: * | C18: Należy wpisać nazwę producenta oraz numer katalogowy producenta oferowanego produktu. Niepodanie ww. danych będzie skutkować odrzuceniem oferty, chyba że dane te będą jednoznacznie wynikać z innych dokumentów dołączonych do oferty.
B19: ** | C19: Zawiera podatek od towarów i usług (VAT) wg obowiązującej stawki oraz koszty wszystkich świadczeń niezbędnych do wykonania zamówienia, w szczególności koszty transportu, ubezpieczenia, opakowania (także kaucjonowanego) itp.
B20: *** | C20: Wykonawca oferujący produkt innego producenta, o innym numerze katalogowym niż wskazany jako przykład zobowiązany jest dostarczyć dokumenty potwierdzające równoważność oferowanego produktu z wymaganiami przedstawionymi w tabeli w języku polskim lub angielskim.
B22: Wymagania dodatkowe:
B24: 1. | C24: Miejsce dostawy: | D24: WSSE Kraków ul. Prądnicka 76, 31-202 Kraków

Sheet Część 02
C1: ='Część 01'!$C$1 -> AGZ.272.7.2025 | G1: Załącznik 1A do SWZ
A3: OPIS PRZEDMIOTU ZAMÓWIENIA - KALKULACJA CENY OFERTY
A4: =MID(CELL("nazwa_pliku",A1),FIND("]",CELL("nazwa_pliku",A1),1)+1,100) -> Część 02
A5: Filtry strzykawkowe
A6: =HYPERLINK("#'Suma'!A1","wstecz") -> wstecz
B7: L.p. | C7: Przedmiot zamówienia | D7: Szczegółowy opis | E7: Opis oferowanego produktu | G7: Jednostka miary **** | H7: Ilość **** | I7: Cena jednostkowa brutto [zł] ** | J7: Wartość brutto [zł]
E8: Producent* | F8: Nr katalogowy producenta*
B10: 1. | C10: Filtry strzykawkowe | D10: • z regenerowanej celulozy (RC); • średnica filtra: 13-17 mm; • wielkość porów: 0,20-0,22 μm; • pakowane w woreczki/pudełka po 50 - 200 sztuk • wymagana ilość: 400 sztuk | J10: =H10*I10 -> 0.00
B11: 2. | C11: Filtry strzykawkowe | D11: • z regenerowanej celulozy (RC); • średnica filtra: 25-30 mm; • wielkość porów: 0,45 µm; • pakowane w woreczki/pudełka po 50 - 200 sztuk • wymagana ilość: 400 sztuk | J11: =H11*I11 -> 0.00
B12: 3. | C12: Filtry strzykawkowe | D12: • z PTFE; • średnica filtra: 13-17 mm; • wielkość porów: 0,20-0,22 μm; • pakowane w woreczki/pudełka po 50 - 100 sztuk • wymagana ilość: 700 sztuk | J12: 0.00
B13: 4. | C13: Filtry strzykawkowe | D13: • z PTFE hydrofilowego; • średnica filtra: 13-17 mm; • wielkość porów: 0,20-0,22 μm; • pakowane w woreczki/pudełka po 50 - 100 sztuk • wymagana ilość: 300 sztuk | J13: 0.00
B14: 5. | C14: Filtry strzykawkowe | D14: • z PTFE; • średnica filtra: 13-17 mm; • wielkość porów: 0,20; • pakowane w woreczki/pudełka po 50 - 200 sztuk • wymagana ilość: 400 sztuk | J14: 0.00
B15: 6. | C15: Filtry strzykawkowe | D15: • z PTFE z prefiltrem z mikrowłókna szklanego (GF); • wielkość porów: 0,20-0,22 μm; • membrana 13 mm; • z zakończeniami typu Luer | G15: op.= 100szt. | H15: 2 | J15: 0.00
B16: 7. | C16: Filtry strzykawkowe | D16: • z PTFE; • średnica filtra: 25-30 mm; • wielkość porów: 0,45 μm; • pakowane w woreczki/pudełka po 50-100 szt • wymagana ilość: 100 sztuk | J16: 0.00
B17: 8. | C17: Filtry strzykawkowe | D17: • z PTFE; • średnica filtra: 25-30 mm; • wielkość porów: 0,45 μm; • pakowane w woreczki/pudełka po 50-100 szt • wymagana ilość: 100 sztuk | J17: 0.00
B18: 9. | C18: Sączki strzykawkowe | D18: np. producent: ALFATEC nr kat. CACA2545N1 lub produkt równoważny*** • matryca z CA (z octanu celulozy); • wielkość porów: 0,45 μm; • średnica 25-30 mm; | G18: op.= 100szt. | H18: 1 | J18: 0.00
B19: 10. | C19: Sączki strzykawkowe | D19: np. producent: ALFATEC nr kat. CACA2522N1 lub produkt równoważny*** • matryca z CA (z octanu celulozy); • wielkość porów: 0,22 μm; • średnica 25 mm; | G19: op.= 100szt. | H19: 1 | J19: 0.00
B20: 11. | C20: Filtry strzykawkowe | D20: • z PTFE z prefiltrem z mikrowłókna szklanego (GF); • wielkość porów: 0,45 μm; • membrana 13 mm; • z zakończeniami typu Luer | G20: op.= 100st. | H20: 3 | J20: 0.00
B21: 12. | C21: Sączki strzykawkowe | D21: np. producent: ALFATEC nr kat. PVD2522NG1 lub produkt równoważny*** • z PVDF z prefiltrem z mikrowłókna szklanego (GF) ; • wielkość porów: 0,22 μm; • średnica 25 mm; | G21: op.= 100szt. | H21: 1 | J21: 0.00
B22: Cena oferty (brutto): | J22: =SUM(J10:J21) -> 0.00
B23: * | C23: Należy wpisać nazwę producenta oraz numer katalogowy producenta oferowanego produktu. Niepodanie ww. danych będzie skutkować odrzuceniem oferty, chyba że dane te będą jednoznacznie wynikać z innych dokumentów dołączonych do oferty.
B24: ** | C24: Zawiera podatek od towarów i usług (VAT) wg obowiązującej stawki oraz koszty wszystkich świadczeń niezbędnych do wykonania zamówienia, w szczególności koszty transportu, ubezpieczenia, opakowania (także kaucjonowanego) itp.
B25: *** | C25: Wykonawca oferujący produkt innego producenta, o innym numerze katalogowym niż wskazany jako przykład zobowiązany jest dostarczyć dokumenty potwierdzające równoważność oferowanego produktu z wymaganiami przedstawionymi w tabeli w języku polskim lub angielskim.
B26: **** | C26: Należy wpisać odpowiednio jednostkę miary i ilość oferowanych jednostek miary. UWAGA: Przy wskazaniu jako jednostki miary - "opakowanie" należy wpisać ile sztuk jest zawartych w opakowaniu, np. opakowanie = 50 sztuk. Jako jednostkę miary należy wskazać opakowanie, które zostanie wycenione w kolumnie "cena jednostkowa brutto" i będzie możliwym zrealizowanie zamówienia na takie pojedyńcze opakowanie.
B28: Wymagania dodatkowe:
B30: 1. | C30: Miejsce dostawy: | D30: WSSE w Krakowie ul. Prądnicka 76, 31-202 Kraków - dla poz. 1-7, 9-12.
D31: WSSE Oddział Laboratoryjny w Tarnowie ul. Mościckiego 10, 33-100 Tarnów - dla poz. 8

Sheet Część 03
C1: ='Część 01'!$C$1 -> AGZ.272.7.2025 | G1: Załącznik 1A do SWZ
A3: OPIS PRZEDMIOTU ZAMÓWIENIA - KALKULACJA CENY OFERTY
A4: =MID(CELL("nazwa_pliku",A1),FIND("]",CELL("nazwa_pliku",A1),1)+1,100) -> Część 03
A5: Kolumna analityczna do chromatografii cieczowej oraz prekolumna
A6: =HYPERLINK("#'Suma'!A1","wstecz") -> wstecz
B7: L.p. | C7: Przedmiot zamówienia | D7: Szczegółowy opis | E7: Opis oferowanego produktu | G7: Jednostka miary | H7: Ilość | I7: Cena jednostkowa brutto [zł] ** | J7: Wartość brutto [zł] | K7: Oddział | L7: Przeznaczenie | N7: Cena jednostkowa netto | O7: Wartość netto | P7: VAT | Q7: Wartość brutto | R7: Wartość | T7: § 4210 | U7: § 4230
E8: Producent* | F8: Nr katalogowy producenta*
L9: N | M9: UZ | R9: N | S9: UZ
B10: 1. | C10: Kolumna analityczna do chromatografii cieczowej | D10: np. producent: Supelco nr kat.504971 lub produkt równoważny*** • kolumna Discovery C18; • wymiary: 25 cm x 4.6 mm; • wielkość ziaren: 5 µm; • szerokość porów: 180 Å; • powierzchnia właściwa: 300 m2/g • zakres pH 2-7,5 | G10: szt. | H10: 1 | J10: =H10*I10 -> 0.00 | K10: LZT | L10: 52% | M10: =1-L10 -> 48% | N10: 2,500.00 | O10: =PRODUCT($H10,$N10) -> 2,500.00 | P10: 23% | Q10: =PRODUCT(O10+O10*P10) -> 3,075.00 | R10: =Q10*L10 -> 1,599.00 | S10: =Q10*M10 -> 1,476.00 | U10: =Q10 -> 3,075.00
B11: 2. | C11: Prekolumna typ: Superguard Discovery | D11: np. producent: Supelco nr kat. 505137 lub produkt równoważny*** • kolumna ochronna; • wymiary: 2cm x 4.0 mm; • wielkość ziaren: 5 µm. | G11: op. = 2szt. | H11: 1 | J11: =H11*I11 -> 0.00 | K11: LZT | L11: 52% | M11: 48% | N11: 785.00 | O11: =PRODUCT($H11,$N11) -> 785.00 | P11: 23% | Q11: =PRODUCT(O11+O11*P11) -> 965.55 | R11: =Q11*L11 -> 502.09 | S11: =Q11*M11 -> 463.46 | U11: 965.55
B12: Cena oferty (brutto): | J12: =SUM(J10:J11) -> 0.00 | K12: RAZEM | O12: =SUM(O10:O11) -> 3,285.00 | Q12: =SUM(Q10:Q11) -> 4,040.55 | R12: =SUM(R10:R11) -> 2,101.09 | S12: =SUM(S10:S11) -> 1,939.46 | T12: =SUM(T10:T11) -> 0.00 | U12: =SUM(U10:U11) -> 4,040.55
B13: * | C13: Należy wpisać nazwę producenta oraz numer katalogowy producenta oferowanego produktu. Niepodanie ww. danych będzie skutkować odrzuceniem oferty, chyba że dane te będą jednoznacznie wynikać z innych dokumentów dołączonych do oferty. | K13: Rozkład procentowy całego pakietu: | R13: =R12/$Q$12 -> 52% | S13: =S12/$Q$12 -> 48% | T13: 4210 | U13: 4230
B14: ** | C14: Zawiera podatek od towarów i usług (VAT) wg obowiązującej stawki oraz koszty wszystkich świadczeń niezbędnych do wykonania zamówienia, w szczególności koszty transportu, ubezpieczenia, opakowania (także kaucjonowanego) itp.
B15: *** | C15: Wykonawca oferujący produkt innego producenta, o innym numerze katalogowym niż wskazany jako przykład zobowiązany jest dostarczyć dokumenty potwierdzające równoważność oferowanego produktu z wymaganiami przedstawionymi w tabeli w języku polskim lub angielskim.
B17: Wymagania dodatkowe:
B19: 1. | C19: Miejsce dostawy: | D19: WSSE Oddział Laboratoryjny w Tarnowie ul. Mościckiego 10, 33-100 Tarnów

Sheet Część 04
C1: ='Część 01'!$C$1 -> AGZ.272.7.2025 | G1: Załącznik 1A do SWZ
A3: OPIS PRZEDMIOTU ZAMÓWIENIA - KALKULACJA CENY OFERTY
A4: =MID(CELL("nazwa_pliku",A1),FIND("]",CELL("nazwa_pliku",A1),1)+1,100) -> Część 04
A5: Kolumny chromatograficzne do HPLC - pr. wody i kosmetyków, witamin, żywności
A6: =HYPERLINK("#'Suma'!A1","wstecz") -> wstecz
B7: L.p. | C7: Przedmiot zamówienia | D7: Szczegółowy opis | E7: Opis oferowanego produktu | G7: Jednostka miary | H7: Ilość | I7: Cena jednostkowa brutto [zł] ** | J7: Wartość brutto [zł]
E8: Producent* | F8: Nr katalogowy producenta*
B10: 1. | C10: Prekolumna | D10: np. producent: Thermo Scientific nr kat. 25005-014001 lub produkt równoważny*** • kolumna ochronna Hypersil Gold pasująca do kolumny Hypersil Gold C18; • wymiary: 10 mm x 4 mm; • kształt i wielkość ziarna w wypełnieniu: sferyczny - 5 µm. | G10: op.= 4 szt. | H10: 1 | J10: =H10*I10 -> 0.00
B11: 2. | C11: Kolumna analityczna Nucleodur C18 Gravity | D11: np. producent: Macherey-Nagel nr. kat. 760082.46 lub produkt równoważny*** • Nucleodur C18 Gravity; • 250 mm x 4,6 mm; • wielkość ziarna 3 µm • stabilna w zakresie pH 1-11; • efektywna zawartość węgla 18%. | G11: szt. | H11: 1 | J11: =H11*I11 -> 0.00
B12: 3. | C12: Prekolumna analityczna CC 8/4 | D12: np. producent: Macherey-Nagel nr. kat. 761902.30 lub produkt równoważny*** • Prekolumna do kolumny Nucleodur C 18 Gravity; • wielkość porów 110 Å; • wymiary: 4mm x 3 mm; • wielkość ziarna 3 um. | G12: op. = 3szt. | H12: 1 | J12: 0.00
B13: 4. | C13: Uchwyt na prekolumnę | D13: np. producent: Macherey-Nagel nr. kat. 761902.30 lub produkt równoważny*** • uchwyt na prekolumnę Nucleodur C18 Gravity 3 µm 4x3 mm. | G13: szt. | H13: 1 | J13: 0.00
B14: 5. | C14: Prekolumna analityczna | D14: np. Producent: Restek nr. kat 921950210 lub produkt równoważny*** • kolumna ochronna Pinnacle II PAH • wymiary: 10 mm x 4 mm. | G14: op. = 3szt. | H14: 1 | J14: 0.00
B15: Cena oferty (brutto): | J15: =SUM(J10:J14) -> 0.00
B16: * | C16: Należy wpisać nazwę producenta oraz numer katalogowy producenta oferowanego produktu. Niepodanie ww. danych będzie skutkować odrzuceniem oferty, chyba że dane te będą jednoznacznie wynikać z innych dokumentów dołączonych do oferty.
B17: ** | C17: Zawiera podatek od towarów i usług (VAT) wg obowiązującej stawki oraz koszty wszystkich świadczeń niezbędnych do wykonania zamówienia, w szczególności koszty transportu, ubezpieczenia, opakowania (także kaucjonowanego) itp.
B18: *** | C18: Wykonawca oferujący produkt innego producenta, o innym numerze katalogowym niż wskazany jako przykład zobowiązany jest dostarczyć dokumenty potwierdzające równoważność oferowanego produktu z wymaganiami przedstawionymi w tabeli w języku polskim lub angielskim.
B20: Wymagania dodatkowe:
B22: 1. | C22: Miejsce dostawy: | D22: WSSE Kraków ul. Prądnicka 76, 31-202 Kraków

Sheet Część 05
C1: ='Część 01'!$C$1 -> AGZ.272.7.2025 | G1: Załącznik 1A do SWZ
A3: OPIS PRZEDMIOTU ZAMÓWIENIA - KALKULACJA CENY OFERTY
A4: =MID(CELL("nazwa_pliku",A1),FIND("]",CELL("nazwa_pliku",A1),1)+1,100) -> Część 05
A5: Wyposażenie do chromatografu jonowego
A6: =HYPERLINK("#'Suma'!A1","wstecz") -> wstecz
B7: L.p. | C7: Przedmiot zamówienia | D7: Szczegółowy opis | E7: Opis oferowanego produktu | G7: Jednostka miary | H7: Ilość | I7: Cena jednostkowa brutto [zł] ** | J7: Wartość brutto [zł]
E8: Producent* | F8: Nr katalogowy producenta*
B10: 1. | C10: Vialki chromatograficzne z zatyczkami i filtrami | D10: np. producent: Thermo Scientific nr kat. 038141 lub produkt równowazny*** • poj. 5 ml • pasujące do autosamplera AS DV DIONEX • zastosowanie: do chromatografu: ICS-1600 i ICS-2500. | G10: op. = 250 szt. | H10: 4 | J10: =H10*I10 -> 0.00
B11: Cena oferty (brutto): | J11: =SUM(J10:J10) -> 0.00
B12: * | C12: Należy wpisać nazwę producenta oraz numer katalogowy producenta oferowanego produktu. Niepodanie ww. danych będzie skutkować odrzuceniem oferty, chyba że dane te będą jednoznacznie wynikać z innych dokumentów dołączonych do oferty.
B13: ** | C13: Zawiera podatek od towarów i usług (VAT) wg obowiązującej stawki oraz koszty wszystkich świadczeń niezbędnych do wykonania zamówienia, w szczególności koszty transportu, ubezpieczenia, opakowania (także kaucjonowanego) itp.
B14: *** | C14: Wykonawca oferujący produkt innego producenta, o innym numerze katalogowym niż wskazany jako przykład zobowiązany jest dostarczyć dokumenty potwierdzające równoważność oferowanego produktu z wymaganiami przedstawionymi w tabeli w języku polskim lub angielskim.
B16: Wymagania dodatkowe:
B18: 1. | C18: Miejsce dostawy: | D18: WSSE w Krakowie ul. Prądnicka 76, 31-202 Kraków

Sheet Część 06
C1: ='Część 01'!$C$1 -> AGZ.272.7.2025 | G1: Załącznik 1A do SWZ
A3: OPIS PRZEDMIOTU ZAMÓWIENIA - KALKULACJA CENY OFERTY
A4: =MID(CELL("nazwa_pliku",A1),FIND("]",CELL("nazwa_pliku",A1),1)+1,100) -> Część 06
A5: Kolumna chromatograficzna
A6: =HYPERLINK("#'Suma'!A1","wstecz") -> wstecz
B7: L.p. | C7: Przedmiot zamówienia | D7: Szczegółowy opis | E7: Opis oferowanego produktu | G7: Jednostka miary | H7: Ilość | I7: Cena jednostkowa brutto [zł] ** | J7: Wartość brutto [zł]
E8: Producent* | F8: Nr katalogowy producenta*
B10: 1. | C10: Kolumna chromatograficzna C18 | D10: np producent: Phenomenex typ: Gemini NX - C18; nr kat. 00G-4454-EO lub produkt równoważny*** • z dodatkowymi wzmocnieniami struktury żelu krzenmionkowego; • zakres pH: 1,0 - 12,0; • kształt i wielkość ziaren: sferyczne, 5 μm; • wymiary: 250 x 4,6 mm; • powierzchnia sorpcyjna - 375 m2/g; • zawartość węgla: 14 % • upakowanie kolumny: L1. | G10: szt. | H10: 1 | J10: =H10*I10 -> 0.00
B11: 2. | C11: Kolumna chromatograficzna C18 | D11: np producent: Phenomenex typ: Synergi 4u Hydro-RP nr kat. 00G-4375-EO lub produkt równoważny*** • End Capping hydrofilowy; • wielkośc porów 80Å; • kształt i wielkość ziaren: sferyczne, 4μm; • wymiary: 250 x 4,6 mm; • powierzchnia sorpcyjna - 475 m2/g; • zawartość węgla: 19 % • objętość porów: 1,05ml/g | G11: szt. | H11: 1 | J11: =H11*I11 -> 0.00
B12: 3. | C12: Prekolumna | D12: np. producent: Phenomenex nr kat. AJO-7511 lub produkt równoważny*** • dedykowana do kolumn Synergi 4u Hydro-RP 80Å; • wymiary prekolumny 4,0 x 3,0 mm • pasująca do uchwytu producenta Phenomenex o nr kat.KJ0-4282. | G12: op. = 10szt. | H12: 1 | J12: 0.00
B13: Cena oferty (brutto): | J13: =SUM(J10:J12) -> 0.00
B14: * | C14: Należy wpisać nazwę producenta oraz numer katalogowy producenta oferowanego produktu. Niepodanie ww. danych będzie skutkować odrzuceniem oferty, chyba że dane te będą jednoznacznie wynikać z innych dokumentów dołączonych do oferty.
B15: ** | C15: Zawiera podatek od towarów i usług (VAT) wg obowiązującej stawki oraz koszty wszystkich świadczeń niezbędnych do wykonania zamówienia, w szczególności koszty transportu, ubezpieczenia, opakowania (także kaucjonowanego) itp.
B16: *** | C16: Wykonawca oferujący produkt innego producenta, o innym numerze katalogowym niż wskazany jako przykład zobowiązany jest dostarczyć dokumenty potwierdzające równoważność oferowanego produktu z wymaganiami przedstawionymi w tabeli w języku polskim lub angielskim.
B18: Wymagania dodatkowe:
B20: 1. | C20: Miejsce dostawy: | D20: WSSE Kraków ul. Prądnicka 76, 31-202 Kraków

Sheet Część 07
C1: ='Część 01'!$C$1 -> AGZ.272.7.2025 | G1: Załącznik 1A do SWZ
A3: OPIS PRZEDMIOTU ZAMÓWIENIA - KALKULACJA CENY OFERTY
A4: =MID(CELL("nazwa_pliku",A1),FIND("]",CELL("nazwa_pliku",A1),1)+1,100) -> Część 07
A5: Lejki polipropylenowe
A6: =HYPERLINK("#'Suma'!A1","wstecz") -> wstecz
B7: L.p. | C7: Przedmiot zamówienia | D7: Szczegółowy opis | E7: Opis oferowanego produktu | G7: Jednostka miary | H7: Ilość | I7: Cena jednostkowa brutto [zł] ** | J7: Wartość brutto [zł]
E8: Producent* | F8: Nr katalogowy producenta*
B10: 1. | C10: Lejki polipropylenowe | D10: np. producent: BIOSART nr kat. 16407-25-ALK lub produkt równoważny*** • plastikowe • objętość 250ml, • kompatybilne z zestawem trójstanowiskowym Sartorius. | G10: op.= 50 szt. | H10: 1 | J10: =H10*I10 -> 0.00
B11: Cena oferty (brutto): | J11: =SUM(J10:J10) -> 0.00
B12: * | C12: Należy wpisać nazwę producenta oraz numer katalogowy producenta oferowanego produktu. Niepodanie ww. danych będzie skutkować odrzuceniem oferty, chyba że dane te będą jednoznacznie wynikać z innych dokumentów dołączonych do oferty.
B13: ** | C13: Zawiera podatek od towarów i usług (VAT) wg obowiązującej stawki oraz koszty wszystkich świadczeń niezbędnych do wykonania zamówienia, w szczególności koszty transportu, ubezpieczenia, opakowania (także kaucjonowanego) itp.
B14: *** | C14: Wykonawca oferujący produkt innego producenta, o innym numerze katalogowym niż wskazany jako przykład zobowiązany jest dostarczyć dokumenty potwierdzające równoważność oferowanego produktu z wymaganiami przedstawionymi w tabeli w języku polskim lub angielskim.
B16: Wymagania dodatkowe:
B18: 1. | C18: Miejsce dostawy: | D18: WSSE Oddział Laboratoryjny w Wadowicach ul. Teatralna 2, 34-100 Wadowice

Sheet Część 08
C1: ='Część 01'!$C$1 -> AGZ.272.7.2025 | G1: Załącznik 1A do SWZ
A3: OPIS PRZEDMIOTU ZAMÓWIENIA - KALKULACJA CENY OFERTY
A4: =MID(CELL("nazwa_pliku",A1),FIND("]",CELL("nazwa_pliku",A1),1)+1,100) -> Część 08
A5: Fiolki scyntylacyjne
A6: =HYPERLINK("#'Suma'!A1","wstecz") -> wstecz
B7: L.p. | C7: Przedmiot zamówienia | D7: Szczegółowy opis | E7: Opis oferowanego produktu | G7: Jednostka miary | H7: Ilość | I7: Cena jednostkowa brutto [zł] ** | J7: Wartość brutto [zł]
E8: Producent* | F8: Nr katalogowy producenta*
B10: 1. | C10: Fiolki scyntylacyjne | D10: • naczynka szklane - szkło borokrzemowe; • o pojemności 20 ml; • wymiary: Ø 28 mm, wysokość 61 mm; • z zakrętką wyposażoną w metalową wkładkę (aluminium) o średnicy 22 mm z tworzywa mocznikowego | G10: op.= 100szt. | H10: 2 | J10: =H10*I10 -> 0.00
B11: Cena oferty (brutto): | J11: =SUM(J10:J10) -> 0.00
B12: * | C12: Należy wpisać nazwę producenta oraz numer katalogowy producenta oferowanego produktu. Niepodanie ww. danych będzie skutkować odrzuceniem oferty, chyba że dane te będą jednoznacznie wynikać z innych dokumentów dołączonych do oferty.
B13: ** | C13: Zawiera podatek od towarów i usług (VAT) wg obowiązującej stawki oraz koszty wszystkich świadczeń niezbędnych do wykonania zamówienia, w szczególności koszty transportu, ubezpieczenia, opakowania (także kaucjonowanego) itp.
B15: Wymagania dodatkowe:
B17: 1. | C17: Miejsce dostawy: | D17: WSSE Krakowie ul. Prądnicka 76, 31-202 Kraków

Sheet Część 09
C1: ='Część 01'!$C$1 -> AGZ.272.7.2025 | G1: Załącznik 1A do SWZ
A3: OPIS PRZEDMIOTU ZAMÓWIENIA - KALKULACJA CENY OFERTY
A4: =MID(CELL("nazwa_pliku",A1),FIND("]",CELL("nazwa_pliku",A1),1)+1,100) -> Część 09
A5: Probówki wirówkowe typu Falcon
A6: =HYPERLINK("#'Suma'!A1","wstecz") -> wstecz
B7: L.p. | C7: Przedmiot zamówienia | D7: Szczegółowy opis | E7: Opis oferowanego produktu | G7: Jednostka miary | H7: Ilość | I7: Cena jednostkowa brutto [zł] ** | J7: Wartość brutto [zł]
E8: Producent* | F8: Nr katalogowy producenta*
B10: 1. | C10: Probówki wirówkowe typu Falcon | D10: • stożkowe, ze skalą • pojemność 50 ml • wysokość 115 ± 1 mm, średnica 29 ± 1 mm • z zakrętką • przejrzyste • materiał: tworzywo PP • RCF (względna siła odśrodkowa) powyżej 14000 • wytrzymałe na proces wirowania (niepękające, nieodkształcające się podczas wirowania przy obrotach 4000 na minutę) • odporne na działanie stężonych kwasów i chloroformu • przy zakręcaniu nieprzeskakujące na gwincie | G10: op.= 25 szt. | H10: 10 | J10: =H10*I10 -> 0.00
B11: 2. | C11: Probówki wirówkowe typu Falcon | D11: • stożkowe, STOJĄCE, ze skalą • pojemność 50 ml • wysokość 115 ± 1 mm, średnica 29 ± 1 mm • z zakrętką • przejrzyste • materiał: tworzywo PP • odporne na działanie stężonych kwasów i chloroformu • przy zakręcaniu nieprzeskakujące na gwincie | G11: op.= 25 szt. | H11: 4 | J11: =H11*I11 -> 0.00
B12: Cena oferty (brutto): | J12: =SUM(J10:J11) -> 0.00
B13: * | C13: Należy wpisać nazwę producenta oraz numer katalogowy producenta oferowanego produktu. Niepodanie ww. danych będzie skutkować odrzuceniem oferty, chyba że dane te będą jednoznacznie wynikać z innych dokumentów dołączonych do oferty.
B14: ** | C14: Zawiera podatek od towarów i usług (VAT) wg obowiązującej stawki oraz koszty wszystkich świadczeń niezbędnych do wykonania zamówienia, w szczególności koszty transportu, ubezpieczenia, opakowania (także kaucjonowanego) itp.
B16: Wymagania dodatkowe:
B18: 1. | C18: Miejsce dostawy: | D18: WSSE Kraków ul. Prądnicka 76, 31-202 Kraków

Sheet Część 10
C1: ='Część 01'!$C$1 -> AGZ.272.7.2025 | G1: Załącznik 1A do SWZ
A3: OPIS PRZEDMIOTU ZAMÓWIENIA - KALKULACJA CENY OFERTY
A4: =MID(CELL("nazwa_pliku",A1),FIND("]",CELL("nazwa_pliku",A1),1)+1,100) -> Część 10
A5: Naczynia z tworzyw sztucznych
A6: =HYPERLINK("#'Suma'!A1","wstecz") -> wstecz
B7: L.p. | C7: Przedmiot zamówienia | D7: Szczegółowy opis | E7: Opis oferowanego produktu | G7: Jednostka miary | H7: Ilość | I7: Cena jednostkowa brutto [zł] ** | J7: Wartość brutto [zł]
E8: Producent* | F8: Nr katalogowy producenta*
B10: 1. | C10: Butelka HDPE + nakrętka z plombą | D10: • pojemność 100 ml; • skala: 20 ml • wysokość: 75 ± 5 mm; • średnica: 55 ± 5 mm; • średnica otworu: 21 ± 2 mm; • materiał: HDPE; • zamknięcie: nakrętka z pierścieniem gwarancyjnym; • kolor nakrętki: niebieski. | G10: szt. | H10: 60 | J10: =H10*I10 -> 0.00
B11: 2. | C11: Butelka HDPE + nakrętka z plombą | D11: • pojemność 100 ml; • skala: 20 ml • wysokość: 75 ± 5 mm; • średnica: 55 ± 5 mm; • średnica otworu: 21 ± 2 mm; • materiał: HDPE; • zamknięcie: nakrętka z pierścieniem gwarancyjnym; • kolor nakrętki: żółta. | G11: szt. | H11: 30 | J11: =H11*I11 -> 0.00
B12: 3. | C12: Pipeta Pasteura z tworzywa LDPE | D12: • długość 155 mm ± 5 mm; • z podziałką, skalowanie do 3 ml | G12: op. = 500szt | H12: 3 | J12: =H12*I12 -> 0.00
B13: Cena oferty (brutto): | J13: =SUM(J10:J12) -> 0.00
B14: * | C14: Należy wpisać nazwę producenta oraz numer katalogowy producenta oferowanego produktu. Niepodanie ww. danych będzie skutkować odrzuceniem oferty, chyba że dane te będą jednoznacznie wynikać z innych dokumentów dołączonych do oferty.
B15: ** | C15: Zawiera podatek od towarów i usług (VAT) wg obowiązującej stawki oraz koszty wszystkich świadczeń niezbędnych do wykonania zamówienia, w szczególności koszty transportu, ubezpieczenia, opakowania (także kaucjonowanego) itp.
B17: Wymagania dodatkowe:
B20: 1. | C20: Miejsce dostawy: | D20: WSSE Kraków ul. Prądnicka 76, 31-202 Kraków

Sheet Część 11
C1: ='Część 01'!$C$1 -> AGZ.272.7.2025 | G1: Załącznik 1A do SWZ - po zmianie z dnia 15.05.2025 r.
A3: OPIS PRZEDMIOTU ZAMÓWIENIA - KALKULACJA CENY OFERTY
A4: =MID(CELL("nazwa_pliku",A1),FIND("]",CELL("nazwa_pliku",A1),1)+1,100) -> Część 11
A5: Probówki do poboru prób wirusologicznych
A6: =HYPERLINK("#'Suma'!A1","wstecz") -> wstecz
B7: L.p. | C7: Przedmiot zamówienia | D7: Szczegółowy opis | E7: Opis oferowanego produktu | G7: Jednostka miary*** | H7: Ilość *** | I7: Cena jednostkowa brutto [zł] ** | J7: Wartość brutto [zł]
E8: Producent* | F8: Nr katalogowy producenta*
B10: 1. | C10: Jednorazowe probówki do poboru próbek wirusologicznych medium stabilizującym wirusy | D10: • probówki z podłożem Hanksa do transportu próbek wirusologicznych; • do pobierania, transportu i zabezpieczenia próbki do badania wirusów metodą łańcuchowej reakcji polimerazy (PCR); • do hodowli wirusów bez wpływu na aktywność wirusa i jego zdolności do infekcji; • ok 3ml medium transportowego stabilizującego wirusa i uniemozliwiającym rozówj bakterii i grzybów; • probówka plastikowa z zakretką; • z dołączonymi sterylnymi giętkimi wymazówkami z końcówką z flokowanego tworzywa sztucznego, łatwo dającymi się odłamać; • możliwość przechowywania w temperaturze pokojowej. • wymagana ilość: 150 sztuk | J10: =H10*I10 -> 0.00
B11: Cena oferty (brutto): | J11: =SUM(J10:J10) -> 0.00
B12: * | C12: Należy wpisać nazwę producenta oraz numer katalogowy producenta oferowanego produktu. Niepodanie ww. danych będzie skutkować odrzuceniem oferty, chyba że dane te będą jednoznacznie wynikać z innych dokumentów dołączonych do oferty.
B13: ** | C13: Zawiera podatek od towarów i usług (VAT) wg obowiązującej stawki oraz koszty wszystkich świadczeń niezbędnych do wykonania zamówienia, w szczególności koszty transportu, ubezpieczenia, opakowania (także kaucjonowanego) itp.
B14: *** | C14: Należy wpisać odpowiednio jednostkę miary i ilość oferowanych jednostek miary. UWAGA: Przy wskazaniu jako jednostki miary - "opakowanie" należy wpisać ile sztuk jest zawartych w opakowaniu, np. opakowanie = 50 sztuk. Jako jednostkę miary należy wskazać opakowanie, które zostanie wycenione w kolumnie "cena jednostkowa brutto", co umożliwi zrealizowanie zamówienia na takie pojedyncze opakowanie.
B16: Wymagania dodatkowe:
B18: 1. | C18: Produkt musi być wyrobem medycznym lub wyrobem do diagnostyki in vitro w rozumieniu ustawy z dnia 07 kwietnia 2022 r. o wyrobach medycznych
B19: 2. | C19: Termin ważności: min. 24 miesiące od daty podpisania umowy
B20: 3. | C20: Miejsce dostawy: | D20: WSSE Krakowie ul. Prądnicka 76, 31-202 Kraków

Sheet Część 12
C1: ='Część 01'!$C$1 -> AGZ.272.7.2025 | G1: Załącznik 1A do SWZ
A3: OPIS PRZEDMIOTU ZAMÓWIENIA - KALKULACJA CENY OFERTY
A4: =MID(CELL("nazwa_pliku",A1),FIND("]",CELL("nazwa_pliku",A1),1)+1,100) -> Część 12
A5: Końcówki do pipet i pudełka
A6: =HYPERLINK("#'Suma'!A1","wstecz") -> wstecz
B7: L.p. | C7: Przedmiot zamówienia | D7: Szczegółowy opis | E7: Opis oferowanego produktu | G7: Jednostka miary | H7: Ilość | I7: Cena jednostkowa brutto [zł] ** | J7: Wartość brutto [zł]
E8: Producent* | F8: Nr katalogowy producenta*
B10: 1. | C10: Końcówki do pipety automatycznej | D10: • kompatybilne z pipetą HTL LAB MATE o pojemności 1000 - 10000 µl; • pojemność końcówki: 1 -10 ml; • bezbarwne. | G10: op.= 100 szt. | H10: 2 | J10: =H10*I10 -> 0.00
B11: 2. | C11: Końcówki do pipet automatycznych | D11: • zastosowanie: do analiz mikrobiologicznych; • objętość od 50 do 1000 µl; • do wielokrotnej sterylizacji; • kompatybilne z pipetami Transferpette; • końcówki pakowane w worki; • długość końcówki max. 7cm. • krótki kołnierz - max. 7mm. | G11: op. = 1000szt. | H11: 2 | J11: =H11*I11 -> 0.00
B12: 3. | C12: Koncówki do pipety automatycznej | D12: • zastosowanie: do analiz mikrobiologicznych; • objętość 10 ml; • do wielokrotnej sterylizacji; • końcówki pakowane w worki. • kompatybilne z pipetami BRAND | G12: op. = 200 szt. | H12: 3 | J12: 0.00
B13: 4. | C13: Końcówki do pipet automatycznych | D13: • końcówki do pipety BIOHIT i Sartorius pojemność: 100-5000µl; • długość końcówki: 150mm; • typ: standardowe, długie, niesterylne. | G13: op. = 100szt. | H13: 3 | J13: 0.00
B14: 5. | C14: Końcówki do pipet automatycznych typ Eppendorf | D14: • zastosowanie: do analiz mikrobiologicznych; • objętość od 100-1000 µl • do wielokrotnej sterylizacji; • kompatybilne z pipetami HTL; • końcówki pakowane w worki; • długość końcówki - 7 ± 0,1 cm, • krótki kołnierz - max. 7 mm. | G14: op. = 1000szt. | H14: 8 | J14: 0.00
B15: 6. | C15: Pudełko na końcówki do pipet automatycznych | D15: • zastosowanie: do analiz mikrobiologicznych; • ze statywem na końcówki o pojemności 1000 μl ; • do wielokrotnej sterylizacji ; • kompatybilne do końcówek BRAND • długość końcówki - 7 cm, • krótki kołnierz - max. 7 mm. | G15: szt. | H15: 3 | J15: 0.00
B16: 7. | C16: Końcówki do pipet automatycznych | D16: • zastosowanie: do analiz mikrobiologicznych "in vitro"; • pojemność do 200 μl; • końcówki typu Eppendorf, uniwersalne, żółte lub białe; • kompatybilne z pipetą typu Eppendorf. | G16: op. = 1000szt. | H16: 50 | J16: 0.00
B17: 8. | C17: Końcówki do pipet automatycznych | D17: • kompatybilne z pipetą HTL Discovery Control o pojemności 100 - 1000 µl; • pojemność końcówki: 100 -1000 ul; • bezbarwne. | G17: op. = 250 szt. | H17: 1 | J17: 0.00
B18: Cena oferty (brutto): | J18: =SUM(J10:J17) -> 0.00
B19: * | C19: Należy wpisać nazwę producenta oraz numer katalogowy producenta oferowanego produktu. Niepodanie ww. danych będzie skutkować odrzuceniem oferty, chyba że dane te będą jednoznacznie wynikać z innych dokumentów dołączonych do oferty.
B20: ** | C20: Zawiera podatek od towarów i usług (VAT) wg obowiązującej stawki oraz koszty wszystkich świadczeń niezbędnych do wykonania zamówienia, w szczególności koszty transportu, ubezpieczenia, opakowania (także kaucjonowanego) itp.
B22: Wymagania dodatkowe:
B24: 1. | C24: Miejsce dostawy: | D24: WSSE Krakowie ul. Prądnicka 76, 31-202 Kraków - dla poz. 1, 5-8
D25: WSSE Oddział Laboratoryjny w Tarnowie ul. Mościckiego 10, 33-100 Tarnów - dla poz. 2, 4
D26: WSSE Oddział Laboratoryjny w Wadowicach ul. Teatralna 2, 34-100 Wadowice - Dla poz. 3

Sheet Część 13
C1: ='Część 01'!$C$1 -> AGZ.272.7.2025 | G1: Załącznik 1A do SWZ
A3: OPIS PRZEDMIOTU ZAMÓWIENIA - KALKULACJA CENY OFERTY
A4: =MID(CELL("nazwa_pliku",A1),FIND("]",CELL("nazwa_pliku",A1),1)+1,100) -> Część 13
A5: Końcówki do pipet Eppendorf
A6: =HYPERLINK("#'Suma'!A1","wstecz") -> wstecz
B7: L.p. | C7: Przedmiot zamówienia | D7: Szczegółowy opis | E7: Opis oferowanego produktu | G7: Jednostka miary | H7: Ilość | I7: Cena jednostkowa brutto [zł] ** | J7: Wartość brutto [zł]
E8: Producent* | F8: Nr katalogowy producenta*
B10: 1. | C10: Końcówki do pipet Eppendorfa 100-5000µl | D10: np. producent: Eppendorf nr kat. 0030000978 lub produkt równoważny*** • końcówki do pipety elektronicznej Eppendorf o możliwości dozowania cieczy od 100 do 5000 µl; • typ ep T.I.P.S. • długość 120 mm; • pakowane w woreczki z możliwością wielokrotnego zamykania. | G10: op. = 500szt. | H10: 2 | J10: =H10*I10 -> 0.00
B11: 2 | C11: Końcówki do pipet Eppendorfa 2-200µl | D11: np. producent: Eppendorf nr kat. 0030000889 lub produkt równoważny*** • końcówki do pipety elektronicznej Eppendorf o możliwości dozowania cieczy od 2 do 200 µl; • typ ep T.I.P.S.; • długość 53 mm; • nadające się do wąskich i głębokich naczyń; • pakowane w woreczki z możliwością wielokrotnego zamykania. | G11: op. = 2x500szt. | H11: 1 | J11: =H11*I11 -> 0.00
B12: 3 | C12: Końcówki do pipet Eppendorfa 1000-10000µl | D12: np. producent: Eppendorf nr kat. 0030000781 lub produkt równoważny*** • końcówki do pipety elektronicznej Eppendorf o możliwości dozowania cieczy od 500 do 10000 µl; • typ ep T.I.P.S.; • długość 243 mm; • nadające się do wąskich i głębokich naczyń; • pakowane w woreczki z możliwością wielokrotnego zamykania. | G12: op. = 200szt. | H12: 4 | J12: 0.00
B13: 4 | C13: Końcówki do pipet Eppendorfa 1000-1000µl | D13: np. producent: Eppendorf nr kat. 0030000781 lub produkt równoważny*** • końcówki do pipety elektronicznej Eppendorf o możliwości dozowania cieczy od 1000 do 10000 µl; • typ ep T.I.P.S.; • długość 243 mm; • nadające się do wąskich i głębokich naczyń; • pakowane w woreczki z możliwością wielokrotnego zamykania. | G13: op. = 200szt. | H13: 2 | J13: 0.00
B14: 5 | C14: Końcówki do pipet Eppendorfa 50-1000µl | D14: np. producent: Eppendorf nr kat. 0030000919 lub produkt równoważny*** • końcówki do pipety elektronicznej Eppendorf z możliwością dozowania cieczy od 50-1000 µl; • typ ep T.I.P.S.; • koloru niebieskiego; • długość 71 mm; • pakowane w woreczki z możliwością wielokrotnego zamykania | G14: op. = 2x500szt. | H14: 6 | J14: 0.00
B15: Cena oferty (brutto): | J15: =SUM(J10:J14) -> 0.00
B16: * | C16: Należy wpisać nazwę producenta oraz numer katalogowy producenta oferowanego produktu. Niepodanie ww. danych będzie skutkować odrzuceniem oferty, chyba że dane te będą jednoznacznie wynikać z innych dokumentów dołączonych do oferty.
B17: ** | C17: Zawiera podatek od towarów i usług (VAT) wg obowiązującej stawki oraz koszty wszystkich świadczeń niezbędnych do wykonania zamówienia, w szczególności koszty transportu, ubezpieczenia, opakowania (także kaucjonowanego) itp.
B18: *** | C18: Wykonawca oferujący produkt innego producenta, o innym numerze katalogowym niż wskazany jako przykład zobowiązany jest dostarczyć dokumenty potwierdzające równoważność oferowanego produktu z wymaganiami przedstawionymi w tabeli w języku polskim lub angielskim.
B20: Wymagania dodatkowe:
B22: 1. | C22: Miejsce dostawy: | D22: WSSE Kraków ul. Prądnicka 76, 31-202 Kraków dla poz. 1-3, 5
D23: WSSE Oddział Laboratoryjny w Tarnowie ul. Mościckiego 10, 33-100 Tarnów - dla poz. 4

Sheet Część 14
C1: ='Część 01'!$C$1 -> AGZ.272.7.2025 | G1: Załącznik 1A do SWZ
A3: OPIS PRZEDMIOTU ZAMÓWIENIA - KALKULACJA CENY OFERTY
A4: =MID(CELL("nazwa_pliku",A1),FIND("]",CELL("nazwa_pliku",A1),1)+1,100) -> Część 14
A5: Strzykawki jednorazowe
A6: =HYPERLINK("#'Suma'!A1","wstecz") -> wstecz
B7: L.p. | C7: Przedmiot zamówienia | D7: Szczegółowy opis | E7: Opis oferowanego produktu | G7: Jednostka miary*** | H7: Ilość*** | I7: Cena jednostkowa brutto [zł] ** | J7: Wartość brutto [zł]
E8: Producent* | F8: Nr katalogowy producenta*
B10: 1. | C10: Strzykawka dwuczęściowa typu Luer | D10: • pojemność 2 mL; • korpus strzykawki - polipropylen; • tłok strzykawki - polietylen, bez gumy; • końcówka typu Luer; • jednorazowego użytku; • opakowanie jednorazowe typu blister pack; • podwójna kryza ograniczająca wysuwanie się tłoka, • pakowane w opakowania po 50 lub 100 szt, • wymagana ilość: 500 szt | J10: =H10*I10 -> 0.00
B11: 2. | C11: Strzykawka dwuczęściowa typu Luer | D11: • pojemność 20 mL • korpus strzykawki - polipropylen, • tłok strzykawki - polietylen, bez gumy, • ekscentryczne położenie stożka Luer, • jednorazowego użytku, • opakowanie jednorazowe typu blister pack, • podwójna kryza ograniczająca wysuwanie się tłoka, • czytelna i niezmywalna skala w kolorze czarnym. • pakowane w opakowania po 50 lub 100 szt, • wymagana ilość: 800 szt | J11: =H11*I11 -> 0.00
B12: 3. | C12: Strzykawka dwuczęściowa typu Luer | D12: • pojemność 10 mL; • korpus strzykawki - polipropylen; • tłok strzykawki - polietylen, bez gumy; • końcówka typu Luer; • jednorazowego użytku; • opakowanie jednorazowe typu blister pack; • podwójna kryza ograniczająca wysuwanie się tłoka, • pakowane w opakowania po 50 lub 100 szt, • wymagana ilość: 100 szt | J12: 0.00
B13: 4. | C13: Strzykawki jednorazowe o pojemności 10 ml | D13: • pojemność 10 ml • przeźroczyste • końcówka typu luer, pasująca do standardowych igieł • tłok z końcówką gumową, • pakowane w opakowania po 50 lub 100 szt, • wymagana ilość: 200 szt. | J13: 0.00
B14: 4. | C14: Igły do strzykawek jednorazowych typu Luer | D14: • wymiary igły: - średnica 1,2 do 1,6 mm; - długość 40 mm. | G14: op.= 100 szt | H14: 5 | J14: 0.00
B15: 5. | C15: Igły do strzykawek jednorazowych typu Luer | D15: • końcówka typu luer • wymiar igły: - grubość: min. 0,7 mm - długość: min. 50 mm, • pakowane w opakowania po 50 lub 100 szt, • wymagana ilość: 200 szt. | J15: 0.00
B16: Cena oferty (brutto): | J16: =SUM(J10:J15) -> 0.00
B17: * | C17: Należy wpisać nazwę producenta oraz numer katalogowy producenta oferowanego produktu. Niepodanie ww. danych będzie skutkować odrzuceniem oferty, chyba że dane te będą jednoznacznie wynikać z innych dokumentów dołączonych do oferty.
B18: ** | C18: Zawiera podatek od towarów i usług (VAT) wg obowiązującej stawki oraz koszty wszystkich świadczeń niezbędnych do wykonania zamówienia, w szczególności koszty transportu, ubezpieczenia, opakowania (także kaucjonowanego) itp.
B19: *** | C19: Należy wpisać odpowiednio jednostkę miary i ilość oferowanych jednostek miary. UWAGA: Przy wskazaniu jako jednostki miary - "opakowanie" należy wpisać ile sztuk jest zawartych w opakowaniu, np. opakowanie = 100 sztuk. Jako jednostkę miary należy wskazać opakowanie, które zostanie wycenione w kolumnie "cena jednostkowa brutto" i będzie możliwym zrealizowanie zamówienia na takie pojedyńcze opakowanie.
B21: Wymagania dodatkowe:
B23: 1. | C23: Miejsce dostawy: | D23: WSSE Kraków ul. Prądnicka 76, 31-202 Kraków

Sheet Część 15
C1: ='Część 01'!$C$1 -> AGZ.272.7.2025 | G1: Załącznik 1A do SWZ
A3: OPIS PRZEDMIOTU ZAMÓWIENIA - KALKULACJA CENY OFERTY
A4: =MID(CELL("nazwa_pliku",A1),FIND("]",CELL("nazwa_pliku",A1),1)+1,100) -> Część 15
A5: Probówki typu eppendorf
A6: =HYPERLINK("#'Suma'!A1","wstecz") -> wstecz
B7: L.p. | C7: Przedmiot zamówienia | D7: Szczegółowy opis | E7: Opis oferowanego produktu | G7: Jednostka miary | H7: Ilość | I7: Cena jednostkowa brutto [zł] ** | J7: Wartość brutto [zł]
E8: Producent* | F8: Nr katalogowy producenta*
B10: 1 | C10: Probówki typu eppendorf 1,5 ml | D10: • sterylne, wolne od DNAz, RNA-z i pirogenów; • o poj. 1,5 ml; • typ Safe-Lock • z przezroczystego polipropylenu; • z dnem stożkowym i płaskim korkiem; • autoklawowalne. | G10: op. = 1000 szt | H10: 1 | J10: =H10*I10 -> 0.00
B11: Cena oferty (brutto): | J11: =SUM(J10:J10) -> 0.00
B12: * | C12: Należy wpisać nazwę producenta oraz numer katalogowy producenta oferowanego produktu. Niepodanie ww. danych będzie skutkować odrzuceniem oferty, chyba że dane te będą jednoznacznie wynikać z innych dokumentów dołączonych do oferty.
B13: ** | C13: Zawiera podatek od towarów i usług (VAT) wg obowiązującej stawki oraz koszty wszystkich świadczeń niezbędnych do wykonania zamówienia, w szczególności koszty transportu, ubezpieczenia, opakowania (także kaucjonowanego) itp.
B15: Wymagania dodatkowe:
B17: 1. | C17: Miejsce dostawy: | D17: WSSE w Krakowie ul. Prądnicka 76, 31-202 Kraków

Sheet Część 16
C1: ='Część 01'!$C$1 -> AGZ.272.7.2025
A3: OPIS PRZEDMIOTU ZAMÓWIENIA - KALKULACJA CENY OFERTY
A4: =MID(CELL("nazwa_pliku",A1),FIND("]",CELL("nazwa_pliku",A1),1)+1,100) -> Część 16
A5: Ezy polistyrenowe, paleczki i głaszczki
A6: =HYPERLINK("#'Suma'!A1","wstecz") -> wstecz
B7: L.p. | C7: Przedmiot zamówienia | D7: Szczegółowy opis | E7: Opis oferowanego produktu | G7: Jednostka miary*** | H7: Ilość*** | I7: Cena jednostkowa brutto [zł] ** | J7: Wartość brutto [zł]
E8: Producent* | F8: Nr katalogowy producenta*
B10: 1. | C10: Eza polistyrenowa | D10: • zastosowanie: do analiz mikrobiologicznych "in vitro"; • pojemność oczka: 1 µl; • jednorazowego użytku; • jałowa; • polistyrenowa; • twarda; • pakowana w odrębne torebki po 10 - 25 sztuk • wymagana ilość: 7 000 sztuk | J10: =H10*I10 -> 0.00
B11: 2. | C11: Eza polistyrenowa | D11: • zastosowanie: do analiz mikrobiologicznych "in vitro"; • pojemność oczka: ok. 1 µl; • jednorazowego użytku; • jałowa; • polistyrenowa; • twarda; • pakowana w odrębne torebki po 10 - 25 sztuk • wymagana ilość: 7 000 sztuk | J11: =H11*I11 -> 0.00
B12: 3. | C12: Eza polistyrenowa | D12: • zastosowanie: do diagnostyki mikrobiologicznej; • pojemność oczka: 10 µl; • jednorazowego użytku; • jałowa; • polistyrenowa; • twarda; • pakowana w odrębne torebki po 10 - 25 sztuk • wymagana ilość: 35 000 sztuk | J12: 0.00
B13: 4. | C13: Głaszczki plastikowe | D13: • zastosowanie: do diagnostyki mikrobiologicznej; • jednorazowego użytku; • sterylne, • typu L, • pakowana w odrębne torebki po 5 - 10 sztuk • wymagana ilość: 1 400 sztuk | J13: 0.00
B14: 5. | C14: Głaszczki plastikowe | D14: • zastosowanie: do diagnostyki mikrobiologicznej; • jednorazowego użytku; • sterylne, • typu L, • pakowana w odrębne torebki po 5 - 10 sztuk • wymagana ilość: 700 sztuk | J14: =H14*I14 -> 0.00
B15: Cena oferty (brutto): | J15: =SUM(J10:J14) -> 0.00
B16: * | C16: Należy wpisać nazwę producenta oraz numer katalogowy producenta oferowanego produktu. Niepodanie ww. danych będzie skutkować odrzuceniem oferty, chyba że dane te będą jednoznacznie wynikać z innych dokumentów dołączonych do oferty.
B17: ** | C17: Zawiera podatek od towarów i usług (VAT) wg obowiązującej stawki oraz koszty wszystkich świadczeń niezbędnych do wykonania zamówienia, w szczególności koszty transportu, ubezpieczenia, opakowania (także kaucjonowanego) itp.
B18: *** | C18: Należy wpisać odpowiednio jednostkę miary i ilość oferowanych jednostek miary. UWAGA: Przy wskazaniu jako jednostki miary - "opakowanie" należy wpisać ile sztuk jest zawartych w opakowaniu, np. opakowanie = 20 sztuk. Jako jednostkę miary należy wskazać opakowanie, które zostanie wycenione w kolumnie "cena jednostkowa brutto" i będzie możliwym zrealizowanie zamówienia na takie pojedyńcze opakowanie.
B20: Wymagania dodatkowe:
B22: 1. | C22: Dla poz. 1-3 do dostawy wymagany certyfikat kalibracji oczka.
B23: 2. | C23: Miejsce dostawy: | D23: WSSE w Krakowie ul. Prądnicka 76, 31-202 Kraków - dla poz. 1, 3, 4
D24: WSSE Oddział Laboratoryjny w Tarnowie ul. Mościckiego 10, 33-100 Tarnów - dla poz. 2, 5

Sheet Część 17
C1: ='Część 01'!$C$1 -> AGZ.272.7.2025 | G1: Załącznik 1A do SWZ
A3: OPIS PRZEDMIOTU ZAMÓWIENIA - KALKULACJA CENY OFERTY
A4: =MID(CELL("nazwa_pliku",A1),FIND("]",CELL("nazwa_pliku",A1),1)+1,100) -> Część 17
A5: Płytki Petriego
A6: =HYPERLINK("#'Suma'!A1","wstecz") -> wstecz
B7: L.p. | C7: Przedmiot zamówienia | D7: Szczegółowy opis | E7: Opis oferowanego produktu | G7: Jednostka miary*** | H7: Ilość*** | I7: Cena jednostkowa brutto [zł] ** | J7: Wartość brutto [zł]
E8: Producent* | F8: Nr katalogowy producenta*
B10: 1. | C10: Płytki Petriego | D10: • plastikowe; • średnica 55-60 mm; • wysokość 14-16 mm; • jednorazowe; • sterylne (jałowe); • bez żeber wentylacyjnych; • nie dzielone • pakowane w odrębne torebki/rękawy po 10-25 szt. w torebce/rękawie. • wymagana ilość: 2 000 szt. | J10: =H10*I10 -> 0.00
B11: 2. | C11: Płytki Petriego | D11: • plastikowe; • średnica 55-60 mm; • wysokość 14-16 mm; • jednorazowe; • sterylne (jałowe); • z żebrami wentylacyjnymi; • nie dzielone; • pakowane w odrebne torebki/rękawy po 10-25 szt. w torebce/rękawie. • wymagana ilość: 1 000 szt. | J11: =H11*I11 -> 0.00
B12: 3. | C12: Płytki Petriego | D12: • plastikowe; • średnica 55-60 mm; • wysokość 14-16 mm; • jednorazowe; • sterylne (jałowe); • bez żeber wentylacyjnych; • nie dzielone; • pakowane w odrebne torebki/rękawy po 10-25 szt. w torebce/rękawie. • wymagana ilość: 4 300 szt. | J12: 0.00
B13: 4. | C13: Płytki Petriego | D13: • plastikowe; • średnica 90-92 mm; • wysokość 14-16,5 mm; • jednorazowe; • sterylne (jałowe); • bez żeber wentylacyjnych; • nie dzielone • pakowane w odrębne torebki/rękawy po 10-25 szt. w torebce/rękawie. • wymagana ilość: 5 000 szt. | J13: 0.00
B14: 5. | C14: Płytki Petriego | D14: • plastikowe; • średnica 90-92 mm; • wysokość 14-16,5 mm; • jednorazowe; • sterylne (jałowe); • bez żeber wentylacyjnych; • nie dzielone • pakowane w odrębne torebki/rękawy po 10-25 szt. w torebce/rękawie. • wymagana ilość: 80 000 szt. | J14: 0.00
B15: Cena oferty (brutto): | J15: =SUM(J10:J14) -> 0.00
B16: * | C16: Należy wpisać nazwę producenta oraz numer katalogowy producenta oferowanego produktu. Niepodanie ww. danych będzie skutkować odrzuceniem oferty, chyba że dane te będą jednoznacznie wynikać z innych dokumentów dołączonych do oferty.
B17: ** | C17: Zawiera podatek od towarów i usług (VAT) wg obowiązującej stawki oraz koszty wszystkich świadczeń niezbędnych do wykonania zamówienia, w szczególności koszty transportu, ubezpieczenia, opakowania (także kaucjonowanego) itp.
B18: *** | C18: Należy wpisać odpowiednio jednostkę miary i ilość oferowanych jednostek miary. UWAGA: Przy wskazaniu jako jednostki miary - "opakowanie" należy wpisać ile sztuk jest zawartych w opakowaniu, np. opakowanie = 20 sztuk. Jako jednostkę miary należy wskazać opakowanie, które zostanie wycenione w kolumnie "cena jednostkowa brutto" i będzie możliwym zrealizowanie zamówienia na takie pojedyńcze opakowanie.
B20: Wymagania dodatkowe:
B22: 1. | C22: Do dostawy wymagany certyfikat jakości.
B23: 2. | C23: Zamawiający wymaga, aby opakowanie jednostkowe zawierało od 10 do 25 sztuk. Zamawiający dopuszcza zaoferowanie niepełnego opakowania jednostkowego, przy zachowaniu sterylności, tak aby pokryć w pełni zapotrzebowanie określone w tabeli.
B24: 3. | C24: Produkt wymieniony w poz. 1-4 nie musi być wyrobem medycznym w rozumieniu ustawy z dn. 20 maja 2010 r o wyrobach medycznych. Jednocześnie Zamawiający dopuszcza taką możliwość.
B25: 4. | C25: Miejsce dostawy: | D25: WSSE w Krakowie ul. Prądnicka 76, 31-202 Kraków - dla poz. 1,2, 5
D26: WSSE Oddział Laboratoryjny w Tarnowie ul. Mościckiego 10, 33-100 Tarnów - dla poz. 3, 4

Sheet Część 18
C1: ='Część 01'!$C$1 -> AGZ.272.7.2025 | G1: Załącznik 1A do SWZ - po zmianie z dnia 15.05.2025 r.
A3: OPIS PRZEDMIOTU ZAMÓWIENIA - KALKULACJA CENY OFERTY
A4: =MID(CELL("nazwa_pliku",A1),FIND("]",CELL("nazwa_pliku",A1),1)+1,100) -> Część 18
A5: Wymazówki z podłożem transportowym AMIES
A6: =HYPERLINK("#'Suma'!A1","wstecz") -> wstecz
B7: L.p. | C7: Przedmiot zamówienia | D7: Szczegółowy opis | E7: Opis oferowanego produktu | G7: Jednostka miary*** | H7: Ilość *** | I7: Cena jednostkowa brutto [zł] ** | J7: Wartość brutto [zł]
E8: Producent* | F8: Nr katalogowy producenta*
B10: 1. | C10: Wymazówki z podłożem transportowym AMIES | D10: • zastosowanie: do analiz mikrobiologicznych "in vitro"; • wymazówka z tworzywa sztucznego wymiary: ø12,5-13,0 mm na dł. 150-165 mm, z wacikiem wiskozowym • karbowany niebieski korek; • etykieta ; • sterylne; • podłoże Amies (zapewnia prawidłową żywotność mikroorganizamów do 72 godzin); • pakowane indywidualnie. • wymagana ilość: 50 000 sztuk | J10: =H10*I10 -> 0.00
B11: 2. | C11: Wymazówki z podłożem transportowym AMIES z węglem | D11: • zastosowanie: do analiz mikrobiologicznych "in vitro"; • wymazówka z tworzywa sztucznego wymiary: ø12,5-13,0 mm na dł. 150-165 mm, z wacikiem wiskozowym • karbowany niebieski korek; • etykieta ; • sterylne; • podłoże Amies z weglem (zapewnia prawidłową żywotność mikroorganizamów do 72 godzin); • pakowane indywidualnie. | G11: op.= 100szt | H11: 1 | J11: =H11*I11 -> 0.00
B12: Cena oferty (brutto): | J12: =SUM(J10:J11) -> 0.00
B13: * | C13: Należy wpisać nazwę producenta oraz numer katalogowy producenta oferowanego produktu. Niepodanie ww. danych będzie skutkować odrzuceniem oferty, chyba że dane te będą jednoznacznie wynikać z innych dokumentów dołączonych do oferty.
B14: ** | C14: Zawiera podatek od towarów i usług (VAT) wg obowiązującej stawki oraz koszty wszystkich świadczeń niezbędnych do wykonania zamówienia, w szczególności koszty transportu, ubezpieczenia, opakowania (także kaucjonowanego) itp.
B15: *** | C15: Należy wpisać odpowiednio jednostkę miary i ilość oferowanych jednostek miary. UWAGA: Przy wskazaniu jako jednostki miary - "opakowanie" należy wpisać ile sztuk jest zawartych w opakowaniu, np. opakowanie = 50 sztuk. Jako jednostkę miary należy wskazać opakowanie, które zostanie wycenione w kolumnie "cena jednostkowa brutto", co umożliwi zrealizowanie zamówienia na takie pojedyncze opakowanie.
B17: Wymagania dodatkowe:
B19: 1. | C19: Produkty wymienione w tabeli mają być wyrobem medycznym w rozumieniu ustawy z dn. 07 kwietnia 2022 r. o wyrobach medycznych.
B20: 2. | C20: Instrukcja użytkowania w języku polskim lub w formie zharmonizowanych symboli na każdym opakowaniu indywidulanym.
B21: 3. | C21: Wymagany okres ważności: min. 18 miesięcy od dostawy.
B22: 4. | C22: Miejsce dostawy: | D22: WSSE Krakowie ul. Prądnicka 76, 31-202 Kraków

Sheet Część 19
C1: ='Część 01'!$C$1 -> AGZ.272.7.2025 | G1: Załącznik 1A do SWZ
A3: OPIS PRZEDMIOTU ZAMÓWIENIA - KALKULACJA CENY OFERTY
A4: =MID(CELL("nazwa_pliku",A1),FIND("]",CELL("nazwa_pliku",A1),1)+1,100) -> Część 19
A5: System do przechowywania mikroorganizmów w stanie zamrożonym
A6: =HYPERLINK("#'Suma'!A1","wstecz") -> wstecz
B7: L.p. | C7: Przedmiot zamówienia | D7: Szczegółowy opis | E7: Opis oferowanego produktu | G7: Jednostka miary | H7: Ilość | I7: Cena jednostkowa brutto [zł] ** | J7: Wartość brutto [zł]
E8: Producent* | F8: Nr katalogowy producenta*
B10: 1. | C10: System do przechowywania mikroorganizmów w stanie zamrożonym | D10: • zastosowanie: do długotrwałego przechowywania szczepów bakteryjnych w temperaturze poniżej - 70 0C; • skład zestaw: - 80 sztuk sterylnych fiolek z płynem odżywczym; - Mix 4 lub 5 kolorów zakrętek/koralików. | G10: zestaw | H10: 1 | J10: =H10*I10 -> 0.00
B11: 2. | C11: System do przechowywania mikroorganizmów w stanie zamrożonym | D11: • zastosowanie: do długotrwałego przechowywania szczepów bakteryjnych w temperaturze poniżej - 70 0C; • skład zestaw: - 80 sztuk sterylnych fiolek z płynem odżywczym; - Mix 4 lub 5 kolorów zakrętek/koralików. | G11: zestaw | H11: 1 | J11: =H11*I11 -> 0.00
B12: 3. | C12: System do przechowywania mikroorganizmów w stanie zamrożonym | D12: • zastosowanie: do długotrwałego przechowywania szczepów bakteryjnych w temperaturze poniżej - 70 0C; • skład zestaw: - 80 sztuk sterylnych fiolek z płynem odżywczym; - Mix 4 lub 5 kolorów zakrętek/koralików. | G12: zestaw | H12: 1 | J12: 0.00
B13: 4. | C13: Pudełko chłodzące Cryo-Safe™ | D13: • Wkład przeznaczony na min 12 a max. 20 probówek o poj. 1,5 ml • Wnętrze pudełka wypełnione specjalnym materiałem zapewniającym utrzymanie niskiej temperatury; • Po wyjęciu z zamrażarki przez ok. 1,5h utrzymuje się temperatura -15°C. | G13: szt. | H13: 1 | J13: 0.00
B14: Cena oferty (brutto): | J14: =SUM(J10:J13) -> 0.00
B15: * | C15: Należy wpisać nazwę producenta oraz numer katalogowy producenta oferowanego produktu. Niepodanie ww. danych będzie skutkować odrzuceniem oferty, chyba że dane te będą jednoznacznie wynikać z innych dokumentów dołączonych do oferty.
B16: ** | C16: Zawiera podatek od towarów i usług (VAT) wg obowiązującej stawki oraz koszty wszystkich świadczeń niezbędnych do wykonania zamówienia, w szczególności koszty transportu, ubezpieczenia, opakowania (także kaucjonowanego) itp.
B18: Wymagania dodatkowe:
B20: 1. | C20: Dla poz. 1-3 do dostawy wymagany certyfikat jakości /świadectwo kontroli jakości lub inny dokument potwierdzający spełnienie wymagań w języku polskim lub angielskim w formie papierowej lub dostępny w formie elektronicznej w miejscu wskazanym przez wykonawcę (adres strony www).
B21: 2. | C21: Dla poz. 1-3 Wymagany okres ważności: min. 12 miesięcy od daty dostawy.
B22: 3. | C22: Miejsce dostawy: | D22: WSSE Kraków ul. Prądnicka 76, 31-202 Kraków - dla poz. 1, 4
D23: WSSE Oddział Laboratoryjny w Tarnowie ul. Mościckiego 10, 33-100 Tarnów - dla poz. 3
D24: WSSE Oddział Laboratoryjny w Wadowicach, ul.Teatralna 2, 34-100 Wadowice - dla poz. 2

Sheet Część 20
C1: ='Część 01'!$C$1 -> AGZ.272.7.2025 | G1: Załącznik 1A do SWZ
A3: OPIS PRZEDMIOTU ZAMÓWIENIA - KALKULACJA CENY OFERTY
A4: =MID(CELL("nazwa_pliku",A1),FIND("]",CELL("nazwa_pliku",A1),1)+1,100) -> Część 20
A5: Zestaw lejków plastikowych oraz filtrów do filtracji membranowej
A6: =HYPERLINK("#'Suma'!A1","wstecz") -> wstecz
B7: L.p. | C7: Przedmiot zamówienia | D7: Szczegółowy opis | E7: Opis oferowanego produktu | G7: Jednostka miary | H7: Ilość | I7: Cena jednostkowa brutto [zł] ** | J7: Wartość brutto [zł]
E8: Producent* | F8: Nr katalogowy producenta*
B10: 1. | C10: Zestaw lejków plastikowych oraz filtrów do filtracji membranowej | D10: • lejki: plastikowe; objętość 250 ml; kompatybilne z zestawem trójstanowiskowym Microfil Millipore; • Filtry: średnica 47 mm; o średnicy porów 0,45 μm; czarne, kratkowane; zawierają estry celulozowe. | G10: op. = 150 zestawów (lejek+ filtr) | H10: 1 | J10: =H10*I10 -> 0.00
B11: Cena oferty (brutto): | J11: =SUM(J10:J10) -> 0.00
B12: * | C12: Należy wpisać nazwę producenta oraz numer katalogowy producenta oferowanego produktu. Niepodanie ww. danych będzie skutkować odrzuceniem oferty, chyba że dane te będą jednoznacznie wynikać z innych dokumentów dołączonych do oferty.
B13: ** | C13: Zawiera podatek od towarów i usług (VAT) wg obowiązującej stawki oraz koszty wszystkich świadczeń niezbędnych do wykonania zamówienia, w szczególności koszty transportu, ubezpieczenia, opakowania (także kaucjonowanego) itp.
B15: Wymagania dodatkowe:
B17: 1. | C17: Wymagany okres ważności: min.18 miesięcy od daty dostawy.
B18: 2. | C18: Miejsce dostawy: | D18: WSSE Kraków ul. Prądnicka 76, 31-202 Kraków

Sheet Część 21
C1: ='Część 01'!$C$1 -> AGZ.272.7.2025 | G1: Załącznik 1A do SWZ - po zmianie z dnia 15.05.2025 r.
A3: OPIS PRZEDMIOTU ZAMÓWIENIA - KALKULACJA CENY OFERTY
A4: =MID(CELL("nazwa_pliku",A1),FIND("]",CELL("nazwa_pliku",A1),1)+1,100) -> Część 21
A5: Elektroda pehametryczna
A6: =HYPERLINK("#'Suma'!A1","wstecz") -> wstecz
B7: L.p. | C7: Przedmiot zamówienia | D7: Szczegółowy opis | E7: Opis oferowanego produktu | G7: Jednostka miary | H7: Ilość | I7: Cena jednostkowa brutto [zł] ** | J7: Wartość brutto [zł]
E8: Producent* | F8: Nr katalogowy producenta*
B10: 1. | C10: Elektroda kombinowana pehametryczna szklana | D10: • typ EPS-1 do pehametru CP-511; • zastosowanie: do analiz laboratoryjnych do pomiaru pH; •zakres temp.pracy 0- min. 70°C ; • zakres pomiarów 0 - 14 pH; • elektrolit: nasycony r-r KCl; • materiał korpusu szkło • długośc kabla 1 m; • wtyk BNC-50; • wymiary (mm): L-12-14, Φ 12; • dołączona buteleczka z nasyconym KCl nakładana na koniec elektrody | G10: szt. | H10: 2 | J10: =H10*I10 -> 0.00
B11: 2. | C11: Statyw na elektrodę i czujkę temperatury | D11: • statyw samopoziomujący pozwalający na utrzymanie w pionie elektrodę i czujnik temperatury; • minimum jedno gniazdo uchwytu statywu o średnicy 16 mm (dla elektrody); • minimum jedno gniazdo uchwytu statywu o średnicy 11 mm (dla czujnika temperatury); • podstawa statywu obciążona w celu zapewnienia stabilności. | G11: szt. | H11: 1 | J11: =H11*I11 -> 0.00
B12: 3. | C12: Elektroda pehametryczna | D12: • typ EPS-1; • zastosowanie: elektroda do pehametru typu CP-411 i CP-551; • z nasuwanym pojemnikiem z KCl • elektroda wraz ze świadectwem wzorcowania | G12: szt. | H12: 1 | J12: 0.00
B13: 4. | C13: Elektroda pehametryczna Producent: Elmetron TYP: EPS-1 | D13: • typ EPS-1 • zastosowanie: Elektroda do pehametru CP-511 • elektroda zespolona przeznaczona do pomiarów pH w roztworach wodnych • zakres pomiarowy: 0÷14 pH • zakres temperatury: 0÷70oC • punkt zerowy 7,0 ±0,3 pH • półogniwo odniesienia(chlorosrebrowe) Ag/AgCl • Elektrolit - 3M KCl • Długość korpusu (bez oprawki) 140±5mm • Minimalna głębokość zanurzenia 30 mm • Typ łącznika - ceramiczny • Membrana - szklana, kulista • Materiał korpusu : szkło • Długość przewodu: ok.1m • Wtyczka BNC-50 • Elektroda wraz ze świadectwem wzorcowania | G13: szt. | H13: 1 | J13: 0.00
B14: 5. | C14: Elektroda pehametryczna Producent: Hydromet TYP: ERH-111 | D14: ● typ ERH-111 ● zastosowanie: Elektroda do pehametru CP-411 ● elektroda zespolona przeznaczona do pomiarów pH w roztworach wodnych ● zakres pomiarowy: 0÷14 pH ● zakres temperatury: 0÷80oC ● punkt zerowy 7,0 ±0,5 pH (0±30mV) ● półogniwo odniesienia(chlorosrebrowe) Ag/AgCl ● Roztwór odniesienia (niewymienny) nasycony KCl+AgCl ●Długość korpusu (bez oprawki) 120±5mm ●Minimalna głębokość zanurzenia 20 mm ● kształt membrany: cylindryczny ● materiał korpusu : żywica epoksydowa ● długość przewodu: ok.1m ● wtyczka BNC ● elektroda wraz ze świadectwem wzorcowania | G14: szt. | H14: 1 | J14: 0.00
B15: 6. | C15: Elektroda pehametryczna plastykowa zespolona | D15: • typ EPP-1 • zastosowanie: do pehametru CPI 505 firmy ELMETRON; • zakres pomiarowy od 0 do 14 pH. • zakres temperatury pracy 0-70°C • punkt zerowy 7,0±0,3 pH • typ łącznika/membrana: ceramiczny/szkło • elektrolit: 3,3 M KCl (żel) • impedancja: < 120 MΩ (25 °C) • wtyk: BNC-50 • wymiary/długość kabla: L=140 mm, Ø=12 mm/1 m • Elektroda wraz ze świadectwem wzorcowania | G15: szt. | H15: 1 | J15: 0.00
B16: Cena oferty (brutto): | J16: =SUM(J10:J15) -> 0.00
B17: * | C17: Należy wpisać nazwę producenta oraz numer katalogowy producenta oferowanego produktu. Niepodanie ww. danych będzie skutkować odrzuceniem oferty, chyba że dane te będą jednoznacznie wynikać z innych dokumentów dołączonych do oferty.
B18: ** | C18: Zawiera podatek od towarów i usług (VAT) wg obowiązującej stawki oraz koszty wszystkich świadczeń niezbędnych do wykonania zamówienia, w szczególności koszty transportu, ubezpieczenia, opakowania (także kaucjonowanego) itp.
B20: Wymagania dodatkowe:
B22: 1. | C22: Poz.1, 3-6 Do dostawy wymagane jest świadectwo wzorcowania zapewniajace zachowanie spójność pomiarowej, wykonane przez akredytowane laboratorium. Wzorcowanie powinno obejmować: nachylenie charakterystyki elektrody, sprawność elektrody oraz wartość punktu zerowego. Wynik wzorcowania podany wraz z max. niepewnością pomiaru ± 1%. Niepewność podana przy poziomie ufności 95% i współczynnik rozszerzenia k=2.
B23: 2. | C23: Wymagany okres gwarancji: min. 12 miesięcy od daty dostawy.
B24: 3. | C24: Do dostawy wymagana instrukcja obsługi oraz karta gwarancyjna w języku polskim.
B25: 4. | C25: Miejsce dostawy: | D25: WSSE w Krakowie ul. Prądnicka 76, 31-202 Kraków - dla poz. 1-3, 5
D26: WSSE Oddział Laboratoryjny w Tarnowie ul. Mościckiego 10, 33-100 Tarnów - dla poz. 4
D27: WSSE Oddział Laboratoryjny w Wadowicach, ul.Teatralna 2, 34-100 Wadowice - dla poz. 6

Sheet Część 22
C1: ='Część 01'!$C$1 -> AGZ.272.7.2025 | G1: Załącznik 1A do SWZ
A3: OPIS PRZEDMIOTU ZAMÓWIENIA - KALKULACJA CENY OFERTY
A4: =MID(CELL("nazwa_pliku",A1),FIND("]",CELL("nazwa_pliku",A1),1)+1,100) -> Część 22
A5: Torebki do sterylizacji w autoklawie
A6: =HYPERLINK("#'Suma'!A1","wstecz") -> wstecz
B7: L.p. | C7: Przedmiot zamówienia | D7: Szczegółowy opis | E7: Opis oferowanego produktu | G7: Jednostka miary | H7: Ilość | I7: Cena jednostkowa brutto [zł] ** | J7: Wartość brutto [zł]
E8: Producent* | F8: Nr katalogowy producenta*
B10: 1. | C10: Torebki do sterylizacji w autoklawie | D10: • Torebki foliowo-papierowe przeznaczone do sterylizacji parą wodną oraz tlenkiem etylenu. • Do sterylizowania w autoklawie. • Torebki samoprzylepne. • Wymiary: 140 mm x 260 mm • Produkt posiada znak CE. | G10: op. = 100szt. | H10: 6 | J10: =H10*I10 -> 0.00
B11: 2. | C11: Torebki do sterylizacji w autoklawie | D11: • Torebki foliowo-papierowe przeznaczone do sterylizacji parą wodną oraz tlenkiem etylenu. • Do sterylizowania w autoklawie. • Torebki samoprzylepne. • Wymiary: 70 mm x 230 mm • Produkt posiada znak CE. | G11: op. = 100szt. | H11: 6 | J11: =H11*I11 -> 0.00
B12: Cena oferty (brutto): | J12: =SUM(J10:J11) -> 0.00
B13: * | C13: Należy wpisać nazwę producenta oraz numer katalogowy producenta oferowanego produktu. Niepodanie ww. danych będzie skutkować odrzuceniem oferty, chyba że dane te będą jednoznacznie wynikać z innych dokumentów dołączonych do oferty.
B14: ** | C14: Zawiera podatek od towarów i usług (VAT) wg obowiązującej stawki oraz koszty wszystkich świadczeń niezbędnych do wykonania zamówienia, w szczególności koszty transportu, ubezpieczenia, opakowania (także kaucjonowanego) itp.
B16: Wymagania dodatkowe:
B18: 1. | C18: Miejsce dostawy: | D18: WSSE Krakowie ul. Prądnicka 76, 31-202 Kraków

Sheet Część 23
C1: ='Część 01'!$C$1 -> AGZ.272.7.2025 | G1: Załącznik 1A do SWZ
A3: OPIS PRZEDMIOTU ZAMÓWIENIA - KALKULACJA CENY OFERTY
A4: =MID(CELL("nazwa_pliku",A1),FIND("]",CELL("nazwa_pliku",A1),1)+1,100) -> Część 23
A5: Pałeczki z wacikiem do wymazów
A6: =HYPERLINK("#'Suma'!A1","wstecz") -> wstecz
B7: L.p. | C7: Przedmiot zamówienia | D7: Szczegółowy opis | E7: Opis oferowanego produktu | G7: Jednostka miary | H7: Ilość | I7: Cena jednostkowa brutto [zł] ** | J7: Wartość brutto [zł]
E8: Producent* | F8: Nr katalogowy producenta*
B10: 1. | C10: Pałeczki z wacikiem do wymazów | D10: • pałeczka polistyrenowa o wymiarach 2,2-2,5 na 150 ± 5 mm • z waciekiem wiskozowym • jałowa bez podłoża • pakowana indywidualnie (opakowanie typu blister). | G10: op.=100 szt | H10: 11 | J10: =H10*I10 -> 0.00
B11: Cena oferty (brutto): | J11: =SUM(J10:J10) -> 0.00
B12: * | C12: Należy wpisać nazwę producenta oraz numer katalogowy producenta oferowanego produktu. Niepodanie ww. danych będzie skutkować odrzuceniem oferty, chyba że dane te będą jednoznacznie wynikać z innych dokumentów dołączonych do oferty.
B13: ** | C13: Zawiera podatek od towarów i usług (VAT) wg obowiązującej stawki oraz koszty wszystkich świadczeń niezbędnych do wykonania zamówienia, w szczególności koszty transportu, ubezpieczenia, opakowania (także kaucjonowanego) itp.
B15: Wymagania dodatkowe:
B17: 1. | C17: Produkty wymienione w tabeli mają być wyrobem medycznym w rozumieniu ustawy z dn. 07 kwietnia 2022 r. o wyrobach medycznych.
B18: 2. | C18: Wymagany okres ważności: min. 18 miesięcy od dostawy.
B19: 3. | C19: Miejsce dostawy: | D19: WSSE Krakowie ul. Prądnicka 76, 31-202 Kraków

Sheet Część 24
C1: AGZ.272.5.2024 | G1: Załącznik 1A do SWZ
A3: OPIS PRZEDMIOTU ZAMÓWIENIA - KALKULACJA CENY OFERTY
A4: =MID(CELL("nazwa_pliku",A1),FIND("]",CELL("nazwa_pliku",A1),1)+1,100) -> Część 24
A5: Pompka wodna strumieniowa (PP)
A6: =HYPERLINK("#'Suma'!A1","wstecz") -> wstecz
B7: L.p. | C7: Przedmiot zamówienia | D7: Szczegółowy opis | E7: Opis oferowanego produktu | G7: Jednostka miary | H7: Ilość | I7: Cena jednostkowa brutto [zł] ** | J7: Wartość brutto [zł]
E8: Producent* | F8: Nr katalogowy producenta*
B10: 1. | C10: Pompka wodna strumieniowa (PP) | D10: np.Producent: BRAND; nr kat.: 3-1596 lub produkt równoważny*** Do wytwarzania próżni oraz do odsysania cieczy. Zakres dostawy: nakrętka nasadowa do podłączenia wody 3/4″, kształtka rurowa redukcyjna 1/2″, oliwka do węży, wraz z podłączeniem próżni ze złączem śrubowym GL 14. Do węży o śr.: 6-9 mm. | G10: szt. | H10: 1 | J10: =H10*I10 -> 0.00
B11: Cena oferty (brutto): | J11: =SUM(J10:J10) -> 0.00
B12: * | C12: Należy wpisać nazwę producenta oraz numer katalogowy producenta oferowanego produktu. Niepodanie ww. danych będzie skutkować odrzuceniem oferty, chyba że dane te będą jednoznacznie wynikać z innych dokumentów dołączonych do oferty.
B13: ** | C13: Zawiera podatek od towarów i usług (VAT) wg obowiązującej stawki oraz koszty wszystkich świadczeń niezbędnych do wykonania zamówienia, w szczególności koszty transportu, ubezpieczenia, opakowania (także kaucjonowanego) itp.
B14: *** | C14: Wykonawca oferujący produkt innego producenta, o innym numerze katalogowym niż wskazany jako przykład zobowiązany jest dostarczyć dokumenty potwierdzające równoważność oferowanego produktu z wymaganiami przedstawionymi w tabeli w języku polskim lub angielskim.
B16: Wymagania dodatkowe:
B18: 1. | C18: Miejsce dostawy: | D18: WSSE Kraków ul. Prądnicka 76, 31-202 Kraków

Sheet Arkusz1 (hidden)
